{"text_format":"1","workbook":"xlsx","n_sheets":3,"sheets":["Konfiguracja"," Druk_Fabryczne"," Druk_Indywidualne"],"not_rendered":{"charts":0,"images":2,"macros":1,"external_links":0,"defined_names":2,"comments":0,"pivot_tables":0},"unopened":[],"bounds":{"document_bytes":16777216,"sheet_cells":100000,"rows_first":2000,"rows_last":500,"rows_between":2000,"halvings":0,"cell_chars":16384,"cell_head_chars":4096},"cells_cut":0,"cells_raw":0,"read":"whole","date_system":"1900"}

{"sheet":"Konfiguracja","index":0,"n_rows":29,"n_cols":32,"rows_kept":29,"cut":false,"hidden":false,"merged":[[28,19,28,21],[28,22,28,24],[28,25,28,27],[28,28,28,30],[27,19,27,21],[27,22,27,24],[27,25,27,27],[27,28,27,30],[26,19,26,21],[26,22,26,24],[26,25,26,27],[26,28,26,30],[25,19,25,21],[25,22,25,24],[25,25,25,27],[25,28,25,30],[24,28,24,30],[23,19,23,21],[23,22,23,24],[23,25,23,27],[23,28,23,30],[19,18,28,18],[20,19,20,21],[20,22,20,24],[20,25,20,27],[20,28,20,30],[21,19,21,21],[21,22,21,24],[21,25,21,27],[21,28,21,30],[22,19,22,21],[22,22,22,24],[22,25,22,27],[22,28,22,30],[24,19,24,21],[24,22,24,24],[24,25,24,27],[28,3,28,5],[28,6,28,8],[19,2,28,2],[20,3,20,5],[20,6,20,8],[21,3,21,5],[21,6,21,8],[22,3,22,5],[22,6,22,8],[23,3,23,5],[23,6,23,8],[24,3,24,5],[24,6,24,8],[25,3,25,5],[19,3,19,14],[27,3,27,5],[27,6,27,8],[26,3,26,5],[26,6,26,8],[25,6,25,8],[22,9,22,11],[22,12,22,14],[25,9,25,11],[25,12,25,14],[26,9,26,11],[26,12,26,14],[19,15,28,15],[19,31,28,31],[19,19,19,30],[6,17,6,23],[27,9,27,11],[27,12,27,14],[28,9,28,11],[28,12,28,14],[23,9,23,11],[23,12,23,14],[24,9,24,11],[24,12,24,14],[20,9,20,11],[20,12,20,14],[21,9,21,11],[21,12,21,14],[1,1,2,33],[3,2,3,9],[4,2,4,9],[5,2,5,9],[3,10,3,33],[4,10,4,33],[5,10,5,33],[3,1,5,1]]}
[]
[null,"Automatyka Załączania Rezerw ATS-9 (Wariant dwa dopływy + łącznik szyn)\n* konfigurator wsuwek * "]
[]
[null,1,"Obiekt",null,null,null,null,null,null,null,"XXX"]
[null,null,"miesiąc_rok",null,null,null,null,null,null,null,"01.08.2019"]
[null,null,"nr. fabryczny",null,null,null,null,null,null,null,190015]
[]
[]
[]
[]
[]
[]
[]
[]
[]
[]
[]
[]
[]
[null,null,2,"Opisy wsuwek frontu urządzenia ",null,null,null,null,null,null,null,null,null,null,null,"USTAWIENIA FABRYCZNE",null,null,3,"Opisy wsuwek frontu urządzenia ",null,null,null,null,null,null,null,null,null,null,null,"USTAWIENIA INDYWIDUALNE"]
[null,null,null,"NAPIĘCIA",null,null,"BLOKADY ",null,null,"SEKCJA 1",null,null,"SEKCJA 2",null,null,null,null,null,null,"NAPIĘCIA",null,null,"BLOKADY ",null,null,"SEKCJA 1",null,null,"SEKCJA 2"]
[null,null,null,"Zanik napięcia TPW1 faza L1",null,null,"SZR zablokowany sygnał zbiorczy",null,null,"Zablokowany od telemechaniki",null,null,"Zablokowany od telemechaniki",null,null,null,null,null,null,"Zanik napięcia TPW1 faza L1",null,null,"SZR zablokowany sygnał zbiorczy",null,null,"Zablokowany od telemechaniki",null,null,"Zablokowany od telemechaniki"]
[null,null,null,"Zanik napięcia TPW1 faza L2",null,null,"Blokada SZR od impulsu ster. Wyłącz",null,null,"Zanik napięcia na szynach sekcji 1",null,null,"Zanik napięcia na szynach sekcji 2",null,null,null,null,null,null,"Zanik napięcia TPW1 faza L2",null,null,"Blokada SZR od impulsu ster. Wyłącz",null,null,"Zanik napięcia na szynach sekcji 1",null,null,"Zanik napięcia na szynach sekcji 2"]
[null,null,null,"Zanik napięcia TPW1 faza L3",null,null,"Brak zbrojenia wyłącznika Q54",null,null,"Brak zbrojenia wyłącznika Q51",null,null,"Brak zbrojenia wyłącznika Q52",null,null,null,null,null,null,"Zanik napięcia TPW1 faza L3",null,null,"Brak zbrojenia wyłącznika Q54",null,null,"Brak zbrojenia wyłącznika Q51",null,null,"Brak zbrojenia wyłącznika Q52"]
[null,null,null,"Asymetria napięcia TPW1",null,null,"Uszkodzone sterowanie wyłącznika Q54",null,null,"Uszkodzone sterowanie wyłącznika Q51",null,null,"Uszkodzone sterowanie wyłącznika Q52",null,null,null,null,null,null,"Asymetria napięcia TPW1",null,null,"Uszkodzone sterowanie wyłącznika Q54",null,null,"Uszkodzone sterowanie wyłącznika Q51",null,null,"Uszkodzone sterowanie wyłącznika Q52"]
[null,null,null,"Zanik napięcia TPW2 faza L1",null,null,"Zablok. od zabezpieczeń wyłącznika Q54",null,null,"Zablokowany od zabezp. wyłącznika Q51",null,null,"Zablokowany od zabezp. wyłącznika Q52",null,null,null,null,null,null,"Zanik napięcia TPW2 faza L1",null,null,"Zablok. od zabezpieczeń wyłącznika Q54",null,null,"Zablokowany od zabezp. wyłącznika Q51",null,null,"Zablokowany od zabezp. wyłącznika Q52"]
[null,null,null,"Zanik napięcia TPW2 faza L2",null,null,"Błędne odwzorowanie wyłącznika Q54",null,null,"Błędne odwzorowanie wyłącznika Q51",null,null,"Błędne odwzorowanie wyłącznika Q52",null,null,null,null,null,null,"Zanik napięcia TPW2 faza L2",null,null,"Błędne odwzorowanie wyłącznika Q54",null,null,"Błędne odwzorowanie wyłącznika Q51",null,null,"Błędne odwzorowanie wyłącznika Q52"]
[null,null,null,"Zanik napięcia TPW2 faza L3",null,null,"Zanik napięcia w obwodzie sterowania\nBLOKOWANIE",null,null,"Działanie PPOŻ",null,null,"Praca równoległa tranformatorów",null,null,null,null,null,null,"Zanik napięcia TPW2 faza L3",null,null,"Zanik napięcia w obwodzie sterowania\nBLOKOWANIE",null,null,"Działanie PPOŻ",null,null,"Praca równoległa tranformatorów"]
[null,null,null,"Asymetria napięcia TPW2",null,null,"Działanie SZR",null,null,"Nieudany cykl SZR uszk. obw. Sterowania",null,null,"ATS uszkodzony",null,null,null,null,null,null,"Asymetria napięcia TPW2",null,null,"Działanie SZR",null,null,"Nieudany cykl SZR uszk. obw. Sterowania",null,null,"ATS uszkodzony"]

{"sheet":" Druk_Fabryczne","index":1,"n_rows":22,"n_cols":8,"rows_kept":22,"cut":false,"hidden":true,"merged":[]}
[]
[]
[]
[]
[null,null,null,"A1","A2",null,"A3","A4"]
[null,null,null,{"$f":"Konfiguracja!D21","v":"NAPIĘCIA"},{"$f":"Konfiguracja!G21","v":"BLOKADY "},null,{"$f":"Konfiguracja!J21","v":"SEKCJA 1"},{"$f":"Konfiguracja!M21","v":"SEKCJA 2"}]
[]
[null,null,null,{"$f":"Konfiguracja!D22","v":"Zanik napięcia TPW1 faza L1"},{"$f":"Konfiguracja!G22","v":"SZR zablokowany sygnał zbiorczy"},null,{"$f":"Konfiguracja!J22","v":"Zablokowany od telemechaniki"},{"$f":"Konfiguracja!M22","v":"Zablokowany od telemechaniki"}]
[]
[null,null,null,{"$f":"Konfiguracja!D23","v":"Zanik napięcia TPW1 faza L2"},{"$f":"Konfiguracja!G23","v":"Blokada SZR od impulsu ster. Wyłącz"},null,{"$f":"Konfiguracja!J23","v":"Zanik napięcia na szynach sekcji 1"},{"$f":"Konfiguracja!M23","v":"Zanik napięcia na szynach sekcji 2"}]
[]
[null,null,null,{"$f":"Konfiguracja!D24","v":"Zanik napięcia TPW1 faza L3"},{"$f":"Konfiguracja!G24","v":"Brak zbrojenia wyłącznika Q54"},null,{"$f":"Konfiguracja!J24","v":"Brak zbrojenia wyłącznika Q51"},{"$f":"Konfiguracja!M24","v":"Brak zbrojenia wyłącznika Q52"}]
[]
[null,null,null,{"$f":"Konfiguracja!D25","v":"Asymetria napięcia TPW1"},{"$f":"Konfiguracja!G25","v":"Uszkodzone sterowanie wyłącznika Q54"},null,{"$f":"Konfiguracja!J25","v":"Uszkodzone sterowanie wyłącznika Q51"},{"$f":"Konfiguracja!M25","v":"Uszkodzone sterowanie wyłącznika Q52"}]
[]
[null,null,null,{"$f":"Konfiguracja!D26","v":"Zanik napięcia TPW2 faza L1"},{"$f":"Konfiguracja!G26","v":"Zablok. od zabezpieczeń wyłącznika Q54"},null,{"$f":"Konfiguracja!J26","v":"Zablokowany od zabezp. wyłącznika Q51"},{"$f":"Konfiguracja!M26","v":"Zablokowany od zabezp. wyłącznika Q52"}]
[]
[null,null,null,{"$f":"Konfiguracja!D27","v":"Zanik napięcia TPW2 faza L2"},{"$f":"Konfiguracja!G27","v":"Błędne odwzorowanie wyłącznika Q54"},null,{"$f":"Konfiguracja!J27","v":"Błędne odwzorowanie wyłącznika Q51"},{"$f":"Konfiguracja!M27","v":"Błędne odwzorowanie wyłącznika Q52"}]
[]
[null,null,null,{"$f":"Konfiguracja!D28","v":"Zanik napięcia TPW2 faza L3"},{"$f":"Konfiguracja!G28","v":"Zanik napięcia w obwodzie sterowania\nBLOKOWANIE"},null,{"$f":"Konfiguracja!J28","v":"Działanie PPOŻ"},{"$f":"Konfiguracja!M28","v":"Praca równoległa tranformatorów"}]
[]
[null,null,null,{"$f":"Konfiguracja!D29","v":"Asymetria napięcia TPW2"},{"$f":"Konfiguracja!G29","v":"Działanie SZR"},null,{"$f":"Konfiguracja!J29","v":"Nieudany cykl SZR uszk. obw. Sterowania"},{"$f":"Konfiguracja!M29","v":"ATS uszkodzony"}]

{"sheet":" Druk_Indywidualne","index":2,"n_rows":22,"n_cols":8,"rows_kept":22,"cut":false,"hidden":true,"merged":[]}
[]
[]
[]
[]
[null,null,null,"A1","A2",null,"A3","A4"]
[null,null,null,{"$f":"Konfiguracja!T21","v":"NAPIĘCIA"},{"$f":"Konfiguracja!W21","v":"BLOKADY "},null,{"$f":"Konfiguracja!Z21","v":"SEKCJA 1"},{"$f":"Konfiguracja!AC21","v":"SEKCJA 2"}]
[]
[null,null,null,{"$f":"Konfiguracja!T22","v":"Zanik napięcia TPW1 faza L1"},{"$f":"Konfiguracja!W22","v":"SZR zablokowany sygnał zbiorczy"},null,{"$f":"Konfiguracja!Z22","v":"Zablokowany od telemechaniki"},{"$f":"Konfiguracja!AC22","v":"Zablokowany od telemechaniki"}]
[]
[null,null,null,{"$f":"Konfiguracja!T23","v":"Zanik napięcia TPW1 faza L2"},{"$f":"Konfiguracja!W23","v":"Blokada SZR od impulsu ster. Wyłącz"},null,{"$f":"Konfiguracja!Z23","v":"Zanik napięcia na szynach sekcji 1"},{"$f":"Konfiguracja!AC23","v":"Zanik napięcia na szynach sekcji 2"}]
[]
[null,null,null,{"$f":"Konfiguracja!T24","v":"Zanik napięcia TPW1 faza L3"},{"$f":"Konfiguracja!W24","v":"Brak zbrojenia wyłącznika Q54"},null,{"$f":"Konfiguracja!Z24","v":"Brak zbrojenia wyłącznika Q51"},{"$f":"Konfiguracja!AC24","v":"Brak zbrojenia wyłącznika Q52"}]
[]
[null,null,null,{"$f":"Konfiguracja!T25","v":"Asymetria napięcia TPW1"},{"$f":"Konfiguracja!W25","v":"Uszkodzone sterowanie wyłącznika Q54"},null,{"$f":"Konfiguracja!Z25","v":"Uszkodzone sterowanie wyłącznika Q51"},{"$f":"Konfiguracja!AC25","v":"Uszkodzone sterowanie wyłącznika Q52"}]
[]
[null,null,null,{"$f":"Konfiguracja!T26","v":"Zanik napięcia TPW2 faza L1"},{"$f":"Konfiguracja!W26","v":"Zablok. od zabezpieczeń wyłącznika Q54"},null,{"$f":"Konfiguracja!Z26","v":"Zablokowany od zabezp. wyłącznika Q51"},{"$f":"Konfiguracja!AC26","v":"Zablokowany od zabezp. wyłącznika Q52"}]
[]
[null,null,null,{"$f":"Konfiguracja!T27","v":"Zanik napięcia TPW2 faza L2"},{"$f":"Konfiguracja!W27","v":"Błędne odwzorowanie wyłącznika Q54"},null,{"$f":"Konfiguracja!Z27","v":"Błędne odwzorowanie wyłącznika Q51"},{"$f":"Konfiguracja!AC27","v":"Błędne odwzorowanie wyłącznika Q52"}]
[]
[null,null,null,{"$f":"Konfiguracja!T28","v":"Zanik napięcia TPW2 faza L3"},{"$f":"Konfiguracja!W28","v":"Zanik napięcia w obwodzie sterowania\nBLOKOWANIE"},null,{"$f":"Konfiguracja!Z28","v":"Działanie PPOŻ"},{"$f":"Konfiguracja!AC28","v":"Praca równoległa tranformatorów"}]
[]
[null,null,null,{"$f":"Konfiguracja!T29","v":"Asymetria napięcia TPW2"},{"$f":"Konfiguracja!W29","v":"Działanie SZR"},null,{"$f":"Konfiguracja!Z29","v":"Nieudany cykl SZR uszk. obw. Sterowania"},{"$f":"Konfiguracja!AC29","v":"ATS uszkodzony"}]